fUST/lending_fUST_20250416
["ID","MTS","AMOUNT","RATE_DAILY","PERIOD"]
[358110968,1744733089176,-299.81982822,0.00021462,2]
[358110977,1744733388269,-188.84397746,0.00019362,2]
[358110978,1744733398389,-225.03548007,0.00019168,2]
[358111051,1744733438682,-235.67873311,0.00019362,2]
[358111053,1744733438694,-1000.0,0.00021362,2]
[358111055,1744733438708,-546.687943,0.00022103,2]
[358111057,1744733438718,-284.70026496,0.0002242,2]
[358111059,1744733438728,-166.29352615,0.0002252,2]
[358111084,1744733438738,-237.8892141,0.0002262,2]
[358111089,1744733439014,-166.29352609,0.00022716,2]
[358111091,1744733439024,-166.29352609,0.00022911,2]
[358111093,1744733439033,-166.29352609,0.00023107,2]
[358111095,1744733439043,-2079.04630408,0.0002319,2]
[358111097,1744733439053,-300.0,0.00023289,2]
[358111099,1744733439063,-15004.6689422,0.0002329,2]
[358111101,1744733439077,-11063.94978663,0.0002329,2]
[358111103,1744733439087,-4463.01097033,0.0002329,3]
[358111109,1744733439134,-2012.93094729,0.0002329,3]
[358111111,1744733439144,-300.0,0.0002329,2]
[358111113,1744733439154,-428.0601985,0.00023291,2]
[358111115,1744733439164,-166.29352609,0.00023303,2]
[358111117,1744733439174,-151.0,0.00023377,2]
[358111119,1744733439183,-1000.0,0.0002338,2]
[358111121,1744733439193,-250.0,0.00023391,2]
[358111123,1744733439203,-1526.670818,0.00023491,2]
[358111125,1744733439212,-166.29352609,0.00023499,2]
[358111127,1744733439221,-627.17273525,0.00023538,2]
[358111129,1744733439230,-435.457962,0.00023548,2]
[358111131,1744733439241,-166.29352609,0.00023694,2]
[358111133,1744733439251,-166.29352609,0.0002389,2]
[358111135,1744733439260,-312.485282,0.000239,7]
[358111137,1744733439271,-312.485282,0.000239,7]
[358111139,1744733439280,-151.0,0.000239,7]
[358111141,1744733439290,-151.0,0.000239,7]
[358111143,1744733439299,-151.0,0.000239,7]
[358111145,1744733439309,-29.5626706,0.000239,2]
[358111299,1744733440797,-376.3572884,0.000239,2]
[358111301,1744733440807,-379.0027116,0.000239,2]
[358111609,1744733446739,-26.9172474,0.000239,2]
[358111610,1744733446749,-151.0,0.000239,7]
[358111611,1744733446759,-278.413387,0.000239,7]
[358111612,1744733446769,-394.765559,0.000239,7]
[358111613,1744733446779,-151.0,0.000239,7]
[358111614,1744733446789,-288.00086,0.000239,7]
[358111615,1744733446798,-476.120336,0.000239,7]
[358111616,1744733446808,-476.120336,0.000239,7]
[358111617,1744733446818,-227.973597,0.000239,7]
[358111618,1744733446827,-227.973597,0.000239,7]
[358111619,1744733446837,-476.120336,0.000239,7]
[358111620,1744733446847,-476.120336,0.000239,7]
[358111621,1744733446856,-227.973597,0.000239,7]
[358111622,1744733446867,-227.973597,0.000239,7]
[358111623,1744733446877,-151.0,0.000239,7]
[358111624,1744733446887,-151.0,0.000239,7]
[358111625,1744733446897,-158.238088,0.000239,7]
[358111626,1744733446906,-4626.35464218,0.000239,5]
[358111627,1744733446916,-500.0,0.00023989,2]
[358111628,1744733446926,-166.46611091,0.00023989,2]
[358111629,1744733446935,-151.0,0.0002399,7]
[358111630,1744733446945,-151.0,0.0002399,7]
[358111631,1744733446954,-151.0,0.0002399,7]
[358111632,1744733446964,-151.0,0.0002399,7]
[358111633,1744733446973,-151.0,0.0002399,7]
[358111634,1744733446983,-151.0,0.0002399,7]
[358111635,1744733446992,-290.0,0.0002399,7]
[358111636,1744733447002,-151.0,0.0002399,2]
[358111637,1744733447012,-312.485282,0.0002399,7]
[358111638,1744733447021,-312.485282,0.0002399,7]
[358111639,1744733447031,-151.0,0.0002399,7]
[358111640,1744733447040,-151.0,0.0002399,7]
[358111641,1744733447050,-151.0,0.0002399,7]
[358111642,1744733447060,-151.0,0.0002399,7]
[358111643,1744733447069,-151.0,0.0002399,7]
[358111644,1744733447079,-405.919959,0.0002399,2]
[358111645,1744733447088,-405.919959,0.0002399,2]
[358111646,1744733447098,-405.919959,0.0002399,2]
[358111647,1744733447107,-405.919959,0.0002399,2]
[358111648,1744733447118,-151.0,0.0002399,7]
[358111649,1744733447127,-151.0,0.0002399,7]
[358111650,1744733447137,-394.765559,0.0002399,7]
[358111651,1744733447146,-394.765559,0.0002399,7]
[358111652,1744733447156,-151.0,0.0002399,7]
[358111653,1744733447165,-151.0,0.0002399,7]
[358111654,1744733447175,-476.120336,0.0002399,7]
[358111655,1744733447184,-476.120336,0.0002399,7]
[358111656,1744733447194,-227.973597,0.0002399,7]
[358111657,1744733447203,-174.77257331,0.0002399,7]
[358111671,1744733510747,-307.29823,0.00021362,2]
[358111683,1744734521619,-166.4509018,0.00019177,4]
[358111689,1744734594044,-175.4370608,0.000189,2]
[358111700,1744734632570,-256.89332663,0.000189,2]
[358111701,1744734632580,-93.4843663,0.00019177,4]
[358111702,1744734632590,-595.94464485,0.00021362,2]
[358111703,1744734632599,-2000.0,0.00021526,2]
[358111704,1744734632609,-272.156028,0.00021733,2]
[358111705,1744734632618,-217.19643011,0.0002179,2]
[358111706,1744734632629,-373.249681,0.00021918,2]
[358111707,1744734632639,-967.05215087,0.00022428,2]
[358111708,1744734632650,-288.6593268,0.0002243,2]
[358111709,1744734632660,-300.0,0.00022874,2]
[358111710,1744734632670,-300.0,0.00022874,2]
[358111711,1744734632679,-8572.4221365,0.00022875,2]
[358111712,1744734632689,-13034.30936442,0.00022899,2]
[358111713,1744734632699,-3237.97095881,0.00022899,3]
[358111714,1744734632708,-50000.0,0.000229,2]
[358111715,1744734632717,-26853.0760026,0.000229,2]
[358111716,1744734632727,-178.27271936,0.00022978,2]
[358111717,1744734632736,-151.0,0.00022992,7]
[358111718,1744734632746,-151.0,0.00022992,7]
[358111719,1744734632755,-202.125804,0.00022992,7]
[358111720,1744734632765,-46.85352174,0.00022992,7]
[358111769,1744734646574,-114.11470526,0.00022992,7]
[358111770,1744734646584,-151.0,0.00022992,7]
[358111771,1744734646594,-284.143971,0.00022992,2]
[358111772,1744734646603,-284.143971,0.00022992,2]
[358111773,1744734646612,-151.0,0.00022992,7]
[358111774,1744734646622,-151.0,0.00022992,7]
[358111775,1744734646631,-151.0,0.00022992,7]
[358111776,1744734646641,-151.0,0.00022992,7]
[358111777,1744734646651,-152.12901,0.00022992,7]
[358111778,1744734646662,-5477.28498302,0.00023721,2]
[358111779,1744734646672,-151.0,0.00023721,7]
[358111780,1744734646683,-500.0,0.00023799,2]
[358111781,1744734646692,-487.81469333,0.00023799,2]
[358111782,1744734646702,-284.143971,0.000238,2]
[358111783,1744734646711,-284.143971,0.000238,2]
[358111784,1744734646721,-151.0,0.000238,7]
[358111785,1744734646731,-151.0,0.000238,7]
[358111786,1744734646740,-151.0,0.000238,7]
[358111787,1744734646749,-4472.1428206,0.000238,4]
[358111788,1744734647014,-4472.14282049,0.000238,4]
[358111789,1744734647024,-151.0,0.00023899,7]
[358111790,1744734647035,-151.0,0.00023899,7]
[358111791,1744734647044,-340.834235,0.00023899,7]
[358111792,1744734647054,-340.834235,0.00023899,7]
[358111793,1744734647063,-208.975135,0.00023899,7]
[358111794,1744734647072,-209.664997,0.00023899,7]
[358111795,1744734647083,-284.143971,0.00023899,2]
[358111796,1744734647096,-174.32431891,0.00023899,2]
[358111798,1744734781748,7862.0,0.00018,2]
[358111894,1744735842818,-1743.86955029,0.0002162,14]
[358111900,1744735842862,-7267.92799909,0.0002162,14]
[358111902,1744735842873,-624.90285379,0.00021621,2]
[358111904,1744735842883,-300.0,0.00021998,2]
[358111905,1744735842892,-300.0,0.00021999,2]
[358111906,1744735842902,-300.0,0.00022,2]
[358111907,1744735842912,-152.0,0.00022,2]
[358111908,1744735842922,-319.928298,0.00022942,2]
[358111909,1744735842933,-151.0,0.00022992,7]
[358111910,1744735842943,-151.0,0.00022992,7]
[358111911,1744735842953,-151.0,0.00022992,7]
[358111912,1744735842963,-300.0,0.00023,2]
[358111913,1744735842972,-152.0,0.00023014,2]
[358111914,1744735842982,-151.0,0.000238,7]
[358111915,1744735842991,-4173.99996581,0.000238,4]
[358111916,1744735843001,-4173.99996579,0.000238,4]
[358111917,1744735843010,-4173.99996579,0.000238,4]
[358111918,1744735843019,-2018.12656271,0.0002389,2]
[358111919,1744735843028,-151.0,0.00023899,7]
[358111920,1744735843038,-2000.0,0.000239,2]
[358111921,1744735843048,-420.0,0.00023905,2]
[358111922,1744735843057,-7935.71506621,0.0002399,2]
[358111923,1744735843067,-151.0,0.0002399,7]
[358111924,1744735843076,-151.0,0.0002399,7]
[358111925,1744735843086,-300.0,0.00024,2]
[358111926,1744735843096,-420.0,0.00024018,2]
[358111927,1744735843105,-1192.6607648,0.000241,2]
[358111928,1744735843114,-313.3133706,0.00024164,2]
[358111929,1744735843124,-267.081938,0.0002433,3]
[358111930,1744735843134,-151.0,0.00024342,2]
[358111931,1744735843143,-151.0,0.00024342,2]
[358111932,1744735843153,-225.57472129,0.00024342,2]
[358111933,1744735843164,-151.0,0.0002441,7]
[358111934,1744735843173,-563.7359843,0.0002441,2]
[358111935,1744735843182,-264.13181869,0.0002442,2]
[358111936,1744735843192,-264.13181868,0.00024429,2]
[358111937,1744735843201,-264.13181868,0.00024439,2]
[358111938,1744735843211,-264.13181868,0.00024448,2]
[358111939,1744735843220,-402.0,0.00024448,2]
[358111940,1744735843230,-264.13181868,0.00024457,2]
[358111941,1744735843239,-160.0,0.00024473,2]
[358111942,1744735843248,-151.0,0.00024486,7]
[358111943,1744735843258,-151.0,0.00024486,7]
[358111944,1744735843267,-151.0,0.00024486,7]
[358111945,1744735843277,-151.0,0.00024486,7]
[358111946,1744735843286,-151.0,0.00024486,7]
[358111948,1744735843296,-350.650725,0.00024486,7]
[358111949,1744735843305,-350.650725,0.00024486,7]
[358111950,1744735843315,-306.750811,0.00024486,7]
[358111952,1744735843324,-231.588604,0.00024486,7]
[358111954,1744735843334,-306.750811,0.00024486,7]
[358111956,1744735843344,-4173.99996579,0.00024486,5]
[358111957,1744735843353,-306.750811,0.00024514,7]
[358111958,1744735843363,-306.750811,0.00024514,7]
[358111959,1744735843373,-71652.41330838,0.00024514,2]
[358111960,1744735843382,-500.0,0.00024519,2]
[358111961,1744735843392,-294.03667411,0.00024519,2]
[358111962,1744735843402,-151.0,0.0002452,7]
[358111963,1744735843412,-151.0,0.0002452,7]
[358111964,1744735843421,-151.0,0.0002452,7]
[358111965,1744735843431,-151.0,0.0002452,7]
[358111966,1744735843441,-152.414376,0.0002452,7]
[358111967,1744735843451,-350.650725,0.0002452,7]
[358111968,1744735843460,-350.650725,0.0002452,7]
[358111969,1744735843470,-2672.73251517,0.00024522,2]
[358111970,1744735843482,-17646.49825372,0.00024553,2]
[358111971,1744735843492,-1618.9854794,0.00024553,3]
[358111972,1744735843502,-151.0,0.00024553,7]
[358111973,1744735843512,-162.241569,0.00024553,7]
[358111974,1744735843521,-162.241569,0.00024553,7]
[358111975,1744735843531,-151.0,0.00024553,7]
[358111976,1744735843540,-151.0,0.00024553,7]
[358111977,1744735843550,-500.0,0.00024553,2]
[358111978,1744735843560,-151.0,0.00024553,7]
[358111979,1744735843569,-151.0,0.00024553,7]
[358111980,1744735843579,-151.0,0.00024553,7]
[358111981,1744735843588,-350.650725,0.00024553,7]
[358111982,1744735843598,-350.650725,0.00024553,7]
[358111983,1744735843607,-350.650725,0.00024553,7]
[358111984,1744735843616,-350.650725,0.00024553,7]
[358111985,1744735843626,-151.0,0.00024553,2]
[358111986,1744735843637,-151.0,0.00024553,2]
[358111987,1744735843646,-151.0,0.00024553,2]
[358111988,1744735843656,-306.750811,0.00024553,7]
[358111989,1744735843666,-306.750811,0.00024553,7]
[358111990,1744735843675,-306.750811,0.00024553,7]
[358111991,1744735843685,-306.750811,0.00024553,7]
[358111992,1744735843695,-306.750811,0.00024553,7]
[358111993,1744735843705,-306.750811,0.00024553,7]
[358111994,1744735843715,-838.71732705,0.00024553,2]
[358111995,1744735843725,-160.0,0.00024553,2]
[358111996,1744735843735,-420.08908737,0.00024553,2]
[358111997,1744735843745,-160.0,0.00024553,2]
[358111998,1744735843754,-160.0,0.00024553,2]
[358111999,1744735843766,-12550.49342536,0.00024553,2]
[358112000,1744735843776,-151.0,0.00024554,7]
[358112001,1744735843787,-249.988226,0.00024554,7]
[358112002,1744735843796,-249.988226,0.00024554,7]
[358112003,1744735843806,-160.0,0.00024554,2]
[358112004,1744735843815,-151.0,0.00024554,7]
[358112005,1744735843825,-151.0,0.00024554,7]
[358112006,1744735843835,-151.0,0.00024554,7]
[358112007,1744735843844,-151.0,0.00024554,7]
[358112008,1744735843853,-151.0,0.00024554,7]
[358112009,1744735843863,-160.0,0.00024554,7]
[358112010,1744735843872,-249.988226,0.00024555,7]
[358112011,1744735843882,-249.988226,0.00024555,7]
[358112012,1744735843891,-249.988226,0.00024555,7]
[358112013,1744735843901,-249.988226,0.00024555,7]
[358112014,1744735843911,-151.0,0.00024555,7]
[358112015,1744735843921,-224.672588,0.00024555,7]
[358112016,1744735843930,-165.431061,0.00024555,7]
[358112017,1744735843939,-162.241569,0.00024555,7]
[358112018,1744735843949,-162.241569,0.00024555,7]
[358112019,1744735843958,-151.0,0.00024555,7]
[358112020,1744735843968,-12550.49342536,0.00024555,7]
[358112021,1744735843978,-151.0,0.00024555,7]
[358112022,1744735843987,-160.0,0.00024555,7]
[358112023,1744735843997,-151.0,0.00024555,7]
[358112024,1744735844006,-151.0,0.00024555,7]
[358112025,1744735844016,-420.08908737,0.00024555,7]
[358112026,1744735844025,-160.0,0.00024555,7]
[358112027,1744735844035,-160.0,0.00024555,7]
[358112028,1744735844044,-350.650725,0.00024555,7]
[358112029,1744735844053,-350.650725,0.00024555,7]
[358112030,1744735844062,-350.650725,0.00024555,7]
[358112031,1744735844074,-350.650725,0.00024555,7]
[358112032,1744735844085,-151.0,0.00024555,2]
[358112033,1744735844098,-306.750811,0.00024555,7]
[358112034,1744735844108,-306.750811,0.00024555,7]
[358112035,1744735844118,-151.0,0.00024556,7]
[358112036,1744735844127,-162.241569,0.00024556,7]
[358112037,1744735844137,-162.241569,0.00024556,7]
[358112038,1744735844146,-151.0,0.00024556,7]
[358112039,1744735844156,-192792.69646352,0.00024557,2]
[358112040,1744735844165,-151.0,0.00024557,7]
[358112041,1744735844175,-162.241569,0.00024557,7]
[358112042,1744735844185,-162.241569,0.00024557,7]
[358112043,1744735844194,-267.512016,0.00024557,7]
[358112044,1744735844203,-873.043629,0.00024557,2]
[358112045,1744735844213,-151.0,0.00024557,7]
[358112046,1744735844222,-199.100014,0.00024557,7]
[358112047,1744735844231,-350.650725,0.00024557,7]
[358112048,1744735844241,-350.650725,0.00024557,7]
[358112049,1744735844251,-151.0,0.00024557,2]
[358112050,1744735844260,-500.0,0.00024573,2]
[358112051,1744735844269,-500.0,0.00024573,2]
[358112052,1744735844279,-500.0,0.00024573,2]
[358112053,1744735844289,-500.0,0.00024573,2]
[358112054,1744735844298,-500.0,0.00024573,2]
[358112055,1744735844307,-519.14920114,0.00024573,2]
[358112056,1744735844317,-500.0,0.00024573,2]
[358112057,1744735844326,-500.0,0.00024573,2]
[358112058,1744735844336,-400.01888809,0.00024573,2]
[358112059,1744735844346,-500.0,0.00024573,2]
[358112060,1744735844355,-506.27748668,0.00024573,2]
[358112061,1744735844365,-500.0,0.00024573,2]
[358112062,1744735844374,-185.49041764,0.00024573,2]
[358112063,1744735844384,-500.0,0.00024573,2]
[358112064,1744735844393,-500.0,0.00024573,2]
[358112065,1744735844403,-500.0,0.00024573,2]
[358112066,1744735844413,-500.0,0.00024573,2]
[358112067,1744735844423,-504.61983736,0.00024573,2]
[358112068,1744735844432,-500.0,0.00024573,2]
[358112069,1744735844441,-500.0,0.00024573,2]
[358112070,1744735844451,-368.32752915,0.00024573,2]
[358112071,1744735844461,-501.62145296,0.00024573,2]
[358112072,1744735844474,-500.0,0.00024573,2]
[358112073,1744735844483,-500.0,0.00024573,2]
[358112074,1744735844492,-500.0,0.00024573,2]
[358112075,1744735844502,-500.0,0.00024573,2]
[358112076,1744735844513,-500.0,0.00024573,2]
[358112077,1744735844523,-500.0,0.00024573,2]
[358112078,1744735844533,-500.0,0.00024573,2]
[358112079,1744735844545,-537.78304744,0.00024573,2]
[358112080,1744735844554,-500.0,0.00024573,2]
[358112081,1744735844564,-500.0,0.00024573,2]
[358112082,1744735844573,-500.0,0.00024573,2]
[358112083,1744735844583,-611.33377677,0.00024573,2]
[358112084,1744735844593,-162.241569,0.00024573,7]
[358112085,1744735844602,-162.241569,0.00024573,7]
[358112086,1744735844611,-873.043629,0.00024573,2]
[358112087,1744735844621,-151.0,0.00024573,7]
[358112088,1744735844631,-350.650725,0.00024573,7]
[358112089,1744735844641,-350.650725,0.00024573,7]
[358112090,1744735844650,-151.0,0.00024573,2]
[358112091,1744735844659,-151.0,0.00024573,2]
[358112092,1744735844669,-306.750811,0.00024573,7]
[358112094,1744735844679,-306.750811,0.00024573,7]
[358112096,1744735844688,-3066.53689325,0.00024578,2]
[358112098,1744735844698,-350.650725,0.00024578,7]
[358112100,1744735844707,-350.650725,0.00024578,7]
[358112102,1744735844716,-151.0,0.00024616,2]
[358112103,1744735844726,-151.0,0.00024616,2]
[358112105,1744735844735,-112549.807103,0.00024657,2]
[358112107,1744735844745,-2440.27,0.00024657,2]
[358112109,1744735844755,-2539.22131433,0.00024657,2]
[358112111,1744735844764,-10551.62484371,0.00024657,2]
[358112113,1744735844774,-249.988226,0.00024657,7]
[358112115,1744735844784,-249.988226,0.00024657,7]
[358112117,1744735844793,-249.988226,0.00024657,7]
[358112119,1744735844802,-249.988226,0.00024657,7]
[358112121,1744735844812,-202.106988,0.00024657,7]
[358112123,1744735844822,-162.241569,0.00024657,7]
[358112124,1744735844831,-162.241569,0.00024657,7]
[358112126,1744735844841,-162.241569,0.00024657,7]
[358112128,1744735844850,-162.241569,0.00024657,7]
[358112130,1744735844859,-873.043629,0.00024657,2]
[358112132,1744735844870,-873.043629,0.00024657,2]
[358112134,1744735844879,-151.0,0.00024657,7]
[358112136,1744735844889,-151.0,0.00024657,7]
[358112137,1744735844898,-350.650725,0.00024657,7]
[358112139,1744735844908,-350.650725,0.00024657,7]
[358112141,1744735844918,-151.0,0.00024657,2]
[358112143,1744735844928,-286.870538,0.00024657,2]
[358112144,1744735844937,-306.750811,0.00024657,7]
[358112146,1744735844946,-306.750811,0.00024657,7]
[358112148,1744735844956,-306.750811,0.00024657,7]
[358112150,1744735844965,-306.750811,0.00024657,7]
[358112152,1744735844974,-152.667039,0.00024658,7]
[358112154,1744735844983,-380.0,0.00024658,2]
[358112156,1744735844993,-249.988226,0.00024658,7]
[358112158,1744735845003,-249.988226,0.00024658,7]
[358112159,1744735845013,-162.241569,0.00024658,7]
[358112161,1744735845022,-162.241569,0.00024658,7]
[358112163,1744735845031,-162.241569,0.00024658,7]
[358112165,1744735845041,-162.241569,0.00024658,7]
[358112167,1744735845051,-873.04363309,0.00024658,2]
[358112169,1744735845060,-500.0,0.00024658,2]
[358112171,1744735845069,-572.63107379,0.00024658,2]
[358112172,1744735845079,-500.0,0.00024658,2]
[358112174,1744735845090,-500.0,0.00024658,2]
[358112176,1744735845100,-500.0,0.00024658,2]
[358112178,1744735845109,-500.0,0.00024658,2]
[358112180,1744735845122,-500.0,0.00024658,2]
[358112182,1744735845132,-500.0,0.00024658,2]
[358112184,1744735845142,-500.0,0.00024658,2]
[358112186,1744735845151,-198.49456016,0.00024658,2]
[358112188,1744735845161,-500.0,0.00024658,2]
[358112189,1744735845172,-500.0,0.00024658,2]
[358112191,1744735845182,-500.0,0.00024658,2]
[358112193,1744735845191,-454.08234123,0.00024658,2]
[358112195,1744735845201,-306.750811,0.00024658,7]
[358112197,1744735845210,-306.750815,0.00024658,7]
[358112199,1744735845219,-151.0,0.000247,10]
[358112201,1744735845229,-1794.04427927,0.000247,7]
[358112203,1744735845239,-151.0,0.000248,8]
[358112204,1744735845248,-151.0,0.000248,7]
[358112206,1744735845273,-500.0,0.00024827,2]
[358112208,1744735845283,-151.0,0.0002489,2]
[358112210,1744735845293,-161.480104,0.0002489,2]
[358112212,1744735845303,-1847.81613973,0.000249,2]
[358112214,1744735845313,-249.988226,0.000249,7]
[358112216,1744735845323,-249.988226,0.000249,7]
[358112218,1744735845332,-162.241569,0.000249,7]
[358112220,1744735845341,-162.241567,0.000249,7]
[358112223,1744735845351,-151.0,0.000249,6]
[358112224,1744735845361,-151.0,0.000249,5]
[358112226,1744735845371,-98993.9362334,0.000249,2]
[358112237,1744735845608,-1095.78871543,0.000249,2]
[358112283,1744736997194,10040.02081885,0.00025,120]
[358112376,1744737035866,-152.0,0.00022,2]
[358112378,1744737035876,-416.60190253,0.000229,2]
[358112380,1744737035886,-274.224255,0.00023635,2]
[358112382,1744737035896,-5.59384247,0.00024484,2]
[358112384,1744737035920,-154.40615753,0.00024484,2]
[358112386,1744737035931,-300.0,0.00024484,2]
[358112388,1744737035941,-300.0,0.00024484,2]
[358112389,1744737035951,-730.0299596,0.00024485,2]
[358112418,1744737038007,-990.31592201,0.00024485,2]
[358112420,1744737038019,-918.99021047,0.00024485,2]
[358112438,1744737038400,-416.72011176,0.00024485,2]
[358112440,1744737038413,-743.59819011,0.00024485,2]
[358112443,1744737038429,-1641.763548,0.00024485,2]
[358112620,1744737040260,-3365.31120233,0.00024485,2]
[358112822,1744737042975,-945.85303945,0.00024485,2]
[358112823,1744737043080,-2797.91124163,0.00024485,2]
[358112824,1744737043091,-838.71732705,0.00024486,2]
[358112825,1744737043100,-420.08908737,0.00024486,2]
[358112826,1744737043110,-160.0,0.00024486,2]
[358112827,1744737043120,-160.0,0.00024486,2]
[358112828,1744737043130,-160.0,0.00024486,2]
[358112830,1744737043139,-160.0,0.00024486,2]
[358112832,1744737043148,-160.0,0.00024519,2]
[358112834,1744737043158,-159.352,0.00024548,2]
[358112836,1744737043168,-402.0,0.00024548,2]
[358112838,1744737043177,-213.7227491,0.000246,2]
[358112840,1744737043186,-213.7227491,0.000246,2]
[358112841,1744737043195,-213.7227491,0.000246,2]
[358112842,1744737043205,-213.7227491,0.000246,2]
[358112843,1744737043215,-213.7227491,0.000246,2]
[358112844,1744737043225,-213.7227491,0.000246,2]
[358112845,1744737043234,-213.7227491,0.000246,2]
[358112846,1744737043244,-213.7227491,0.000246,2]
[358112847,1744737043253,-213.7227491,0.000246,2]
[358112848,1744737043263,-507.3623858,0.0002465,2]
[358112849,1744737043273,-213.7227491,0.000247,2]
[358112850,1744737043282,-213.7227491,0.000247,2]
[358112851,1744737043292,-213.7227491,0.000247,2]
[358112852,1744737043302,-298.3464443,0.000247,2]
[358112853,1744737043312,-213.7227491,0.000247,2]
[358112854,1744737043321,-500.0,0.00024799,2]
[358112855,1744737043331,-500.0,0.00024799,2]
[358112856,1744737043341,-500.0,0.00024799,2]
[358112857,1744737043351,-500.0,0.00024799,2]
[358112858,1744737043360,-494.89803791,0.00024799,2]
[358112859,1744737043370,-164.97350521,0.00024799,2]
[358112860,1744737043380,-500.0,0.00024799,2]
[358112861,1744737043389,-500.0,0.00024799,2]
[358112862,1744737043398,-500.0,0.00024799,2]
[358112863,1744737043408,-500.0,0.00024799,2]
[358112864,1744737043418,-500.0,0.00024799,2]
[358112865,1744737043427,-622.31121447,0.00024799,2]
[358112866,1744737043436,-500.0,0.00024799,2]
[358112867,1744737043446,-500.0,0.00024799,2]
[358112868,1744737043457,-500.0,0.00024799,2]
[358112869,1744737043466,-500.0,0.00024799,2]
[358112870,1744737043475,-542.02403167,0.00024799,2]
[358112871,1744737043485,-500.0,0.00024799,2]
[358112872,1744737043495,-500.0,0.00024799,2]
[358112873,1744737043504,-500.0,0.00024799,2]
[358112874,1744737043514,-500.0,0.00024799,2]
[358112875,1744737043524,-500.0,0.00024799,2]
[358112876,1744737043533,-500.0,0.00024799,2]
[358112877,1744737043543,-500.0,0.00024799,2]
[358112878,1744737043552,-500.0,0.00024799,2]
[358112879,1744737043562,-500.0,0.00024799,2]
[358112880,1744737043572,-500.0,0.00024799,2]
[358112881,1744737043581,-568.79016587,0.00024799,2]
[358112882,1744737043592,-500.0,0.00024799,2]
[358112883,1744737043602,-500.0,0.00024799,2]
[358112884,1744737043611,-500.0,0.00024799,2]
[358112885,1744737043621,-500.0,0.00024799,2]
[358112886,1744737043630,-500.0,0.00024799,2]
[358112887,1744737043640,-500.0,0.00024799,2]
[358112888,1744737043649,-500.0,0.00024799,2]
[358112889,1744737043659,-500.0,0.00024799,2]
[358112890,1744737043668,-500.0,0.00024799,2]
[358112891,1744737043678,-500.0,0.00024799,2]
[358112892,1744737043688,-500.0,0.00024799,2]
[358112893,1744737043699,-500.0,0.00024799,2]
[358112894,1744737043708,-500.0,0.00024799,2]
[358112895,1744737043718,-167.52380827,0.00024799,2]
[358112896,1744737043728,-250.84175165,0.00024799,2]
[358112897,1744737043737,-1765.86074238,0.00024799,2]
[358112898,1744737043747,-32066.85875234,0.000248,2]
[358112906,1744737046168,-407.65185833,0.000248,2]
[358112907,1744737046222,-1199.90179442,0.000248,2]
[358112908,1744737046234,-291.39999987,0.000248,2]
[358112909,1744737046275,-38312.60922231,0.000248,2]
[358112927,1744737802273,637.0,0.00025,120]
[358112984,1744738232337,-250.0,0.000219,2]
[358112986,1744738232347,-223.9348692,0.00022569,2]
[358112988,1744738232357,-2000.0,0.00022803,2]
[358112990,1744738232367,-262.0419142,0.00022823,2]
[358112992,1744738232377,-277.73460168,0.000229,2]
[358112994,1744738232386,-235.049361,0.00023042,2]
[358112996,1744738232395,-1999.7832576,0.00023368,2]
[358112998,1744738232405,-641.9818793,0.00023578,2]
[358113000,1744738232414,-300.0,0.00023848,2]